[Event "*** SCC Grand Prix: Titled Tuesday Blitz"]
[Site "Chess.com"]
[Date "2020.07.14"]
[Round "2"]
[White "enzovsky"]
[Black "swimmerchess"]
[Result "0-1"]
[WhiteElo "2516"]
[BlackElo "2825"]
[TimeControl "180+1"]
[EndTime "10:18:51 PDT"]
[Termination "swimmerchess won by resignation"]

1. e4 {[%clk 0:03:00.9]} 1... e5 {[%clk 0:02:58.4]} 2. Nf3 {[%clk 0:03:00.9]}
2... Nc6 {[%clk 0:02:58.5]} 3. d4 {[%clk 0:03:01.6]} 3... exd4 {[%clk
0:02:58.3]} 4. Nxd4 {[%clk 0:03:02.5]} 4... Bc5 {[%clk 0:02:58.5]} 5. Nxc6
{[%clk 0:03:02.9]} 5... Qf6 {[%clk 0:02:58.2]} 6. Qf3 {[%clk 0:03:03.1]} 6...
dxc6 {[%clk 0:02:57.8]} 7. Nc3 {[%clk 0:03:01.8]} 7... Bd4 {[%clk 0:02:57.6]} 8.
Qxf6 {[%clk 0:02:49.6]} 8... Nxf6 {[%clk 0:02:56.6]} 9. Ne2 {[%clk 0:02:49.7]}
9... Bb6 {[%clk 0:02:54.5]} 10. f3 {[%clk 0:02:49.2]} 10... Bd7 {[%clk
0:02:49.6]} 11. a4 {[%clk 0:02:48.2]} 11... a5 {[%clk 0:02:48.5]} 12. Bd2 {[%clk
0:02:46.9]} 12... O-O-O {[%clk 0:02:48.1]} 13. O-O-O {[%clk 0:02:43.6]} 13...
Rhe8 {[%clk 0:02:48.1]} 14. Bc3 {[%clk 0:02:42]} 14... Be6 {[%clk 0:02:45.2]}
15. Rxd8+ {[%clk 0:02:38.6]} 15... Rxd8 {[%clk 0:02:46.1]} 16. Bd2 {[%clk
0:02:32.1]} 16... Nd7 {[%clk 0:02:30.4]} 17. Nf4 {[%clk 0:02:29.8]} 17... Nc5
{[%clk 0:02:26.8]} 18. Nxe6 {[%clk 0:02:26.1]} 18... Nxe6 {[%clk 0:02:27.2]} 19.
b3 {[%clk 0:02:06]} 19... Nd4 {[%clk 0:02:19.7]} 20. Bc3 {[%clk 0:01:59.3]}
20... f5 {[%clk 0:02:12.1]} 21. exf5 {[%clk 0:01:53.5]} 21... Nxf5 {[%clk
0:02:13]} 22. Bd3 {[%clk 0:01:48.7]} 22... g6 {[%clk 0:02:12.9]} 23. Re1 {[%clk
0:01:44.5]} 23... Ne3 {[%clk 0:02:10.4]} 24. Re2 {[%clk 0:01:38.5]} 24... Re8
{[%clk 0:01:55.8]} 25. Bd2 {[%clk 0:01:30.7]} 25... Kd7 {[%clk 0:01:54.4]} 26.
Be4 {[%clk 0:01:18.1]} 26... Nd5 {[%clk 0:01:41.7]} 27. Bg5 {[%clk 0:01:09.8]}
27... Nc3 {[%clk 0:01:35.2]} 28. Rd2+ {[%clk 0:01:07.4]} 28... Kc8 {[%clk
0:01:35]} 29. Bd3 {[%clk 0:01:01.4]} 29... Re1+ {[%clk 0:01:29.5]} 30. Kb2
{[%clk 0:00:59.1]} 30... Nd1+ {[%clk 0:01:01.9]} 31. Ka2 {[%clk 0:00:51.8]}
31... Kb8 {[%clk 0:00:53.5]} 32. Bc4 {[%clk 0:00:48.1]} 32... Bc5 {[%clk
0:00:47.1]} 33. Bf6 {[%clk 0:00:36.9]} 33... Bb4 {[%clk 0:00:40.4]} 34. Rd8+
{[%clk 0:00:32.9]} 34... Ka7 {[%clk 0:00:40.1]} 35. c3 {[%clk 0:00:25.6]} 35...
Nxc3+ {[%clk 0:00:37.8]} 36. Kb2 {[%clk 0:00:20.9]} 36... Nd1+ {[%clk 0:00:38]}
37. Kc2 {[%clk 0:00:19]} 37... Ne3+ {[%clk 0:00:38]} 38. Kb2 {[%clk 0:00:19.5]}
38... Nxc4+ {[%clk 0:00:37.6]} 39. bxc4 {[%clk 0:00:20.4]} 39... Re2+ {[%clk
0:00:38.5]} 40. Kb3 {[%clk 0:00:21]} 40... Rxg2 {[%clk 0:00:38.1]} 41. Rd7
{[%clk 0:00:20.9]} 41... Bd6 {[%clk 0:00:32.3]} 42. Rxh7 {[%clk 0:00:19.3]}
42... Rxh2 {[%clk 0:00:32.3]} 43. Bd4+ {[%clk 0:00:15.2]} 43... b6 {[%clk
0:00:31.1]} 44. Rg7 {[%clk 0:00:15.5]} 44... Rg2 {[%clk 0:00:29]} 45. Kc3 {[%clk
0:00:12.5]} 45... Kb7 {[%clk 0:00:28.4]} 46. Kd3 {[%clk 0:00:12.8]} 46... c5
{[%clk 0:00:28.4]} 47. Be3 {[%clk 0:00:11.9]} 47... Kc6 {[%clk 0:00:28.4]} 48.
Ke4 {[%clk 0:00:11.9]} 48... Rc2 {[%clk 0:00:26.8]} 49. Rxg6 {[%clk 0:00:11.8]}
49... Rxc4+ {[%clk 0:00:26.9]} 50. Kd3 {[%clk 0:00:12.5]} 50... Rxa4 {[%clk
0:00:27.8]} 51. f4 {[%clk 0:00:12.8]} 51... c4+ {[%clk 0:00:28]} 52. Ke4 {[%clk
0:00:12.3]} 52... Ra3 {[%clk 0:00:25.1]} 53. Bd4 {[%clk 0:00:11]} 53... c3
{[%clk 0:00:22]} 54. Kd3 {[%clk 0:00:11.2]} 54... Kd5 {[%clk 0:00:18.4]} 55.
Rg5+ {[%clk 0:00:09.8]} 55... Ke6 {[%clk 0:00:17.9]} 56. f5+ {[%clk 0:00:10.3]}
56... Kf7 {[%clk 0:00:16.5]} 57. Rg7+ {[%clk 0:00:10.3]} 57... Kf8 {[%clk
0:00:17.1]} 58. f6 {[%clk 0:00:10.5]} 58... c5 {[%clk 0:00:16.5]} 59. Bxc3
{[%clk 0:00:09.4]} 59... Be5 {[%clk 0:00:16.8]} 60. Rb7 {[%clk 0:00:08.9]} 60...
Rxc3+ {[%clk 0:00:16.8]} 0-1

[Event "*** SCC Grand Prix: Titled Tuesday Blitz"]
[Site "Chess.com"]
[Date "2020.07.14"]
[Round "2"]
[White "eljanov"]
[Black "m_ezat"]
[Result "0-1"]
[WhiteElo "2842"]
[BlackElo "2541"]
[TimeControl "180+1"]
[EndTime "10:18:53 PDT"]
[Termination "m_ezat won on time"]

1. e4 {[%clk 0:03:00.9]} 1... c6 {[%clk 0:02:59.2]} 2. Nf3 {[%clk 0:02:56.8]}
2... d5 {[%clk 0:02:59.4]} 3. d3 {[%clk 0:02:57.1]} 3... Bg4 {[%clk 0:02:58.7]}
4. h3 {[%clk 0:02:55.6]} 4... Bh5 {[%clk 0:02:58.1]} 5. Qe2 {[%clk 0:02:56]}
5... e6 {[%clk 0:02:57.8]} 6. g4 {[%clk 0:02:55.7]} 6... Bg6 {[%clk 0:02:57.3]}
7. h4 {[%clk 0:02:55.4]} 7... dxe4 {[%clk 0:02:48.8]} 8. dxe4 {[%clk 0:02:51]}
8... h5 {[%clk 0:02:48.9]} 9. g5 {[%clk 0:02:45.1]} 9... Nd7 {[%clk 0:02:47.6]}
10. Nc3 {[%clk 0:02:43]} 10... Bb4 {[%clk 0:02:45.8]} 11. Bd2 {[%clk 0:02:43.3]}
11... Qc7 {[%clk 0:02:36.8]} 12. a3 {[%clk 0:02:28.7]} 12... Ba5 {[%clk
0:02:34.7]} 13. O-O-O {[%clk 0:02:26.2]} 13... O-O-O {[%clk 0:02:28.8]} 14. Bg2
{[%clk 0:01:38.9]} 14... Ne7 {[%clk 0:02:27.3]} 15. Nd4 {[%clk 0:01:34.4]} 15...
Nc5 {[%clk 0:01:55.3]} 16. Nb3 {[%clk 0:01:03.8]} 16... Nxb3+ {[%clk 0:01:48.1]}
17. cxb3 {[%clk 0:01:04.7]} 17... Rd7 {[%clk 0:01:31.1]} 18. b4 {[%clk
0:00:56.8]} 18... Bb6 {[%clk 0:01:30.4]} 19. Be3 {[%clk 0:00:56.3]} 19... Rhd8
{[%clk 0:01:28.3]} 20. f4 {[%clk 0:00:45.3]} 20... a5 {[%clk 0:00:31.2]} 21. Na4
{[%clk 0:00:34.7]} 21... Bxe3+ {[%clk 0:00:22.8]} 22. Qxe3 {[%clk 0:00:34.3]}
22... axb4 {[%clk 0:00:22.8]} 23. Nb6+ {[%clk 0:00:33.1]} 23... Kb8 {[%clk
0:00:22.8]} 24. Nxd7+ {[%clk 0:00:33.1]} 24... Rxd7 {[%clk 0:00:23.1]} 25. axb4
{[%clk 0:00:32.8]} 25... Nc8 {[%clk 0:00:21.7]} 26. Rxd7 {[%clk 0:00:31.5]}
26... Qxd7 {[%clk 0:00:21.7]} 27. Rd1 {[%clk 0:00:30.8]} 27... Qc7 {[%clk
0:00:22.2]} 28. Qd2 {[%clk 0:00:26.6]} 28... Qb6 {[%clk 0:00:20.2]} 29. Rf1
{[%clk 0:00:24.1]} 29... Qb5 {[%clk 0:00:19.2]} 30. f5 {[%clk 0:00:20.1]} 30...
exf5 {[%clk 0:00:17]} 31. exf5 {[%clk 0:00:21]} 31... Bh7 {[%clk 0:00:17.2]} 32.
Qf4+ {[%clk 0:00:19.5]} 32... Ka7 {[%clk 0:00:16.8]} 33. Rf3 {[%clk 0:00:15.2]}
33... Qe2 {[%clk 0:00:09.6]} 34. Ra3+ {[%clk 0:00:12.6]} 34... Kb6 {[%clk
0:00:08.9]} 35. Qe3+ {[%clk 0:00:09.6]} 35... Qxe3+ {[%clk 0:00:08.1]} 36. Rxe3
{[%clk 0:00:10]} 36... Bxf5 {[%clk 0:00:08.7]} 37. Bh3 {[%clk 0:00:05.8]} 37...
Bxh3 {[%clk 0:00:07.2]} 38. Rxh3 {[%clk 0:00:06.7]} 38... Nd6 {[%clk 0:00:07.5]}
39. Rf3 {[%clk 0:00:06.2]} 39... g6 {[%clk 0:00:07.1]} 40. Rf6 {[%clk 0:00:06]}
40... Kc7 {[%clk 0:00:07.7]} 41. Kc2 {[%clk 0:00:05.5]} 41... Kd7 {[%clk
0:00:08.2]} 42. Kd3 {[%clk 0:00:05]} 42... Ke7 {[%clk 0:00:08]} 43. Kd4 {[%clk
0:00:04.3]} 43... Nf5+ {[%clk 0:00:08.4]} 44. Kc5 {[%clk 0:00:04.7]} 44... Nxh4
{[%clk 0:00:08.5]} 45. Rf1 {[%clk 0:00:03.8]} 45... Nf5 {[%clk 0:00:07.8]} 46.
Kb6 {[%clk 0:00:04.2]} 46... Nd6 {[%clk 0:00:08.4]} 47. Kc7 {[%clk 0:00:04.5]}
47... Ne4 {[%clk 0:00:07.9]} 48. Re1 {[%clk 0:00:03.9]} 48... f5 {[%clk
0:00:07.1]} 49. gxf6+ {[%clk 0:00:04.3]} 49... Kxf6 {[%clk 0:00:07.7]} 50. Rxe4
{[%clk 0:00:04.7]} 50... g5 {[%clk 0:00:08.4]} 51. Kxb7 {[%clk 0:00:05]} 51...
g4 {[%clk 0:00:08.7]} 52. Kxc6 {[%clk 0:00:05.3]} 52... g3 {[%clk 0:00:09.2]}
53. Re8 {[%clk 0:00:04.3]} 53... Kf7 {[%clk 0:00:08.1]} 54. Re4 {[%clk
0:00:02.5]} 54... g2 {[%clk 0:00:07.4]} 0-1

[Event "*** SCC Grand Prix: Titled Tuesday Blitz"]
[Site "Chess.com"]
[Date "2020.07.14"]
[Round "2"]
[White "benko_008"]
[Black "mishikomchedlishvili"]
[Result "0-1"]
[WhiteElo "2483"]
[BlackElo "2758"]
[TimeControl "180+1"]
[EndTime "10:18:55 PDT"]
[Termination "mishikomchedlishvili won on time"]

1. Nf3 {[%clk 0:03:00.9]} 1... d5 {[%clk 0:02:58.8]} 2. g3 {[%clk 0:02:56.6]}
2... Nd7 {[%clk 0:02:58.4]} 3. d4 {[%clk 0:02:55.5]} 3... Nb6 {[%clk 0:02:56.8]}
4. Bg2 {[%clk 0:02:55]} 4... Bf5 {[%clk 0:02:56.2]} 5. a4 {[%clk 0:02:53]} 5...
a5 {[%clk 0:02:55]} 6. O-O {[%clk 0:02:51.6]} 6... e6 {[%clk 0:02:54.9]} 7. b3
{[%clk 0:02:46.6]} 7... h6 {[%clk 0:02:54.5]} 8. Bb2 {[%clk 0:02:44.7]} 8... Nf6
{[%clk 0:02:53.6]} 9. Ne5 {[%clk 0:02:42.2]} 9... c6 {[%clk 0:02:52]} 10. Nd2
{[%clk 0:02:40]} 10... Be7 {[%clk 0:02:51.2]} 11. Rc1 {[%clk 0:02:16.4]} 11...
O-O {[%clk 0:02:49.6]} 12. e3 {[%clk 0:02:13.6]} 12... Nbd7 {[%clk 0:02:48.8]}
13. Nxd7 {[%clk 0:02:10.5]} 13... Qxd7 {[%clk 0:02:45]} 14. Nf3 {[%clk
0:02:09.5]} 14... Ne4 {[%clk 0:02:42.1]} 15. Ne5 {[%clk 0:02:08.5]} 15... Qd8
{[%clk 0:02:42.1]} 16. Qe2 {[%clk 0:02:01.1]} 16... Bd6 {[%clk 0:02:38.8]} 17.
Nd3 {[%clk 0:01:58.1]} 17... Bh7 {[%clk 0:02:33.1]} 18. f3 {[%clk 0:01:55.3]}
18... Nf6 {[%clk 0:02:32.9]} 19. Nf2 {[%clk 0:01:52.6]} 19... Re8 {[%clk
0:02:28.8]} 20. Nd3 {[%clk 0:01:51.3]} 20... Qc7 {[%clk 0:02:20.3]} 21. e4
{[%clk 0:01:49.7]} 21... Nd7 {[%clk 0:02:19.1]} 22. c4 {[%clk 0:01:40.6]} 22...
Qd8 {[%clk 0:02:10.1]} 23. Qf2 {[%clk 0:01:35.3]} 23... Rc8 {[%clk 0:02:07.1]}
24. Rfd1 {[%clk 0:01:18.9]} 24... Bf8 {[%clk 0:02:06.6]} 25. cxd5 {[%clk
0:01:06.9]} 25... exd5 {[%clk 0:02:04.5]} 26. e5 {[%clk 0:01:03.1]} 26... Qb6
{[%clk 0:02:03.4]} 27. Rc3 {[%clk 0:00:53.1]} 27... Be7 {[%clk 0:01:44.3]} 28.
f4 {[%clk 0:00:52.8]} 28... Bf5 {[%clk 0:01:36.3]} 29. h3 {[%clk 0:00:50.2]}
29... h5 {[%clk 0:01:35.8]} 30. Kh2 {[%clk 0:00:49.5]} 30... Nf8 {[%clk
0:01:35.5]} 31. Nc5 {[%clk 0:00:44.9]} 31... Qc7 {[%clk 0:01:16.5]} 32. Bf3
{[%clk 0:00:39]} 32... b6 {[%clk 0:00:51.3]} 33. Nd3 {[%clk 0:00:37.1]} 33...
Qd7 {[%clk 0:00:48.4]} 34. Qg2 {[%clk 0:00:34.6]} 34... Ne6 {[%clk 0:00:41.4]}
35. Nf2 {[%clk 0:00:32.2]} 35... h4 {[%clk 0:00:34.1]} 36. Rcc1 {[%clk
0:00:21.8]} 36... Red8 {[%clk 0:00:30.5]} 37. Rg1 {[%clk 0:00:20.5]} 37... Bf8
{[%clk 0:00:25.7]} 38. Rcd1 {[%clk 0:00:20.1]} 38... Qe7 {[%clk 0:00:20.5]} 39.
Bc1 {[%clk 0:00:18.1]} 39... c5 {[%clk 0:00:20.1]} 40. g4 {[%clk 0:00:17.8]}
40... Bc2 {[%clk 0:00:19.1]} 41. Rd2 {[%clk 0:00:16.7]} 41... Nxd4 {[%clk
0:00:19.1]} 42. Rxd4 {[%clk 0:00:14.6]} 42... cxd4 {[%clk 0:00:18.6]} 43. g5
{[%clk 0:00:09.2]} 43... Bf5 {[%clk 0:00:17.7]} 44. Bg4 {[%clk 0:00:08.6]} 44...
Qe6 {[%clk 0:00:17.4]} 45. Bxf5 {[%clk 0:00:06]} 45... Qxf5 {[%clk 0:00:17.4]}
46. Ng4 {[%clk 0:00:06.9]} 46... Rc2 {[%clk 0:00:16.4]} 47. Bd2 {[%clk
0:00:07.4]} 47... Qe4 {[%clk 0:00:12.7]} 48. Nf6+ {[%clk 0:00:05.5]} 48... gxf6
{[%clk 0:00:12]} 49. gxf6+ {[%clk 0:00:06.4]} 49... Qxg2+ {[%clk 0:00:12.1]} 50.
Rxg2+ {[%clk 0:00:07.3]} 50... Kh7 {[%clk 0:00:12.3]} 51. Kg1 {[%clk 0:00:06.8]}
51... Bh6 {[%clk 0:00:12.1]} 52. Kf1 {[%clk 0:00:05.8]} 52... d3 {[%clk
0:00:11.7]} 53. f5 {[%clk 0:00:05.7]} 53... Rxd2 {[%clk 0:00:11]} 54. e6 {[%clk
0:00:04.3]} 54... Rxg2 {[%clk 0:00:10.2]} 55. Kxg2 {[%clk 0:00:04.6]} 55... d2
{[%clk 0:00:10.5]} 56. e7 {[%clk 0:00:05.5]} 56... Re8 {[%clk 0:00:10.6]} 0-1

[Event "*** SCC Grand Prix: Titled Tuesday Blitz"]
[Site "Chess.com"]
[Date "2020.07.14"]
[Round "2"]
[White "AurumO"]
[Black "Eternauta2400"]
[Result "0-1"]
[WhiteElo "1982"]
[BlackElo "2592"]
[TimeControl "180+1"]
[EndTime "10:18:57 PDT"]
[Termination "Eternauta2400 won on time"]

1. e4 {[%clk 0:03:00.9]} 1... e5 {[%clk 0:02:59.6]} 2. Nf3 {[%clk 0:02:58.8]}
2... Nc6 {[%clk 0:02:59.6]} 3. Bb5 {[%clk 0:02:59.3]} 3... a6 {[%clk 0:02:59.6]}
4. Ba4 {[%clk 0:02:59.9]} 4... Nf6 {[%clk 0:02:59.5]} 5. Qe2 {[%clk 0:02:58.8]}
5... b5 {[%clk 0:02:57.3]} 6. Bb3 {[%clk 0:02:59.3]} 6... Bc5 {[%clk 0:02:57.1]}
7. c3 {[%clk 0:02:59.6]} 7... d6 {[%clk 0:02:54.9]} 8. d3 {[%clk 0:02:59.7]}
8... O-O {[%clk 0:02:53.7]} 9. h3 {[%clk 0:02:58.2]} 9... Bb7 {[%clk 0:02:52.7]}
10. O-O {[%clk 0:02:58.5]} 10... Ne7 {[%clk 0:02:49.1]} 11. Rd1 {[%clk 0:02:52]}
11... Ng6 {[%clk 0:02:44.6]} 12. Bg5 {[%clk 0:02:52]} 12... h6 {[%clk
0:02:43.9]} 13. Be3 {[%clk 0:02:50.3]} 13... Bxe3 {[%clk 0:02:42.2]} 14. fxe3
{[%clk 0:02:51.2]} 14... d5 {[%clk 0:02:36.7]} 15. exd5 {[%clk 0:02:37.3]} 15...
Bxd5 {[%clk 0:02:37.6]} 16. Bc2 {[%clk 0:02:26.7]} 16... Qe7 {[%clk 0:02:32.1]}
17. e4 {[%clk 0:02:25.4]} 17... Bb7 {[%clk 0:02:31.2]} 18. Nbd2 {[%clk
0:02:17.6]} 18... Qc5+ {[%clk 0:02:17.1]} 19. Qf2 {[%clk 0:02:14.2]} 19... Qxf2+
{[%clk 0:02:04.3]} 20. Kxf2 {[%clk 0:02:15.1]} 20... Rad8 {[%clk 0:02:03.7]} 21.
Nf1 {[%clk 0:02:11.7]} 21... Rd7 {[%clk 0:01:55.9]} 22. Rd2 {[%clk 0:02:04.9]}
22... Rfd8 {[%clk 0:01:56.1]} 23. Rad1 {[%clk 0:02:05.2]} 23... Nh5 {[%clk
0:01:51.7]} 24. g3 {[%clk 0:01:56.3]} 24... Nf6 {[%clk 0:01:36]} 25. Ke2 {[%clk
0:01:36.6]} 25... c5 {[%clk 0:01:34.2]} 26. Ne3 {[%clk 0:01:33.1]} 26... Nh5
{[%clk 0:01:30.9]} 27. Nf5 {[%clk 0:01:31.4]} 27... Ne7 {[%clk 0:01:21.7]} 28.
Nxe7+ {[%clk 0:01:24.3]} 28... Rxe7 {[%clk 0:01:21.6]} 29. Kf2 {[%clk
0:01:24.7]} 29... g6 {[%clk 0:01:15.1]} 30. d4 {[%clk 0:01:15.2]} 30... exd4
{[%clk 0:01:14]} 31. cxd4 {[%clk 0:01:14.7]} 31... cxd4 {[%clk 0:00:53.2]} 32.
Rxd4 {[%clk 0:01:07.7]} 32... Rxd4 {[%clk 0:00:53.2]} 33. Rxd4 {[%clk
0:01:07.4]} 33... Nf6 {[%clk 0:00:54.1]} 34. g4 {[%clk 0:00:45.9]} 34... Nxe4+
{[%clk 0:00:52.7]} 35. Bxe4 {[%clk 0:00:41.8]} 35... Rxe4 {[%clk 0:00:53]} 36.
Rd8+ {[%clk 0:00:40.5]} 36... Kg7 {[%clk 0:00:52.6]} 37. Rd7 {[%clk 0:00:39.3]}
37... Bc8 {[%clk 0:00:47.8]} 38. Rc7 {[%clk 0:00:34.7]} 38... Be6 {[%clk
0:00:47.6]} 39. a3 {[%clk 0:00:33]} 39... b4 {[%clk 0:00:43.7]} 40. axb4 {[%clk
0:00:27.6]} 40... Rxb4 {[%clk 0:00:44.6]} 41. Rc2 {[%clk 0:00:27.7]} 41... Kf6
{[%clk 0:00:42.8]} 42. Rd2 {[%clk 0:00:21.6]} 42... a5 {[%clk 0:00:41.6]} 43.
Nd4 {[%clk 0:00:20.6]} 43... h5 {[%clk 0:00:30.4]} 44. Nxe6 {[%clk 0:00:16.5]}
44... fxe6 {[%clk 0:00:30]} 45. gxh5 {[%clk 0:00:16.1]} 45... gxh5 {[%clk
0:00:30.9]} 46. Kg3 {[%clk 0:00:15.6]} 46... h4+ {[%clk 0:00:30.4]} 47. Kg2
{[%clk 0:00:15.2]} 47... Kf5 {[%clk 0:00:30.5]} 48. Rf2+ {[%clk 0:00:16.1]}
48... Ke5 {[%clk 0:00:29.3]} 49. Re2+ {[%clk 0:00:17]} 49... Kf4 {[%clk
0:00:29.2]} 50. Rf2+ {[%clk 0:00:14.3]} 50... Kg5 {[%clk 0:00:28.6]} 51. Re2
{[%clk 0:00:13.1]} 51... Kf5 {[%clk 0:00:28.4]} 52. Rf2+ {[%clk 0:00:12.8]}
52... Ke5 {[%clk 0:00:28.5]} 53. Re2+ {[%clk 0:00:13.2]} 53... Re4 {[%clk
0:00:28.3]} 54. Rc2 {[%clk 0:00:12]} 54... Kd5 {[%clk 0:00:28.2]} 55. Rd2+
{[%clk 0:00:11.1]} 55... Rd4 {[%clk 0:00:28.2]} 56. Rf2 {[%clk 0:00:10.7]} 56...
e5 {[%clk 0:00:27.6]} 57. Kf3 {[%clk 0:00:09.8]} 57... a4 {[%clk 0:00:23.6]} 58.
Rc2 {[%clk 0:00:07]} 58... Rb4 {[%clk 0:00:23.1]} 59. Rd2+ {[%clk 0:00:05.7]}
59... Ke6 {[%clk 0:00:23.2]} 60. Re2 {[%clk 0:00:05.2]} 60... Kf5 {[%clk
0:00:23.4]} 61. Rc2 {[%clk 0:00:03.7]} 61... Rb3+ {[%clk 0:00:23.5]} 62. Kg2
{[%clk 0:00:03.9]} 62... Kf4 {[%clk 0:00:21.9]} 63. Rf2+ {[%clk 0:00:04.3]}
63... Ke4 {[%clk 0:00:22]} 64. Re2+ {[%clk 0:00:04.5]} 64... Kd4 {[%clk
0:00:22.2]} 65. Rd2+ {[%clk 0:00:03.7]} 65... Rd3 {[%clk 0:00:22.4]} 66. Rc2
{[%clk 0:00:01.6]} 66... e4 {[%clk 0:00:22.1]} 0-1

[Event "*** SCC Grand Prix: Titled Tuesday Blitz"]
[Site "Chess.com"]
[Date "2020.07.14"]
[Round "2"]
[White "Tsyhanchuk_Stanislav"]
[Black "Duong57"]
[Result "1-0"]
[WhiteElo "2445"]
[BlackElo "2238"]
[TimeControl "180+1"]
[EndTime "10:18:57 PDT"]
[Termination "Tsyhanchuk_Stanislav won by checkmate"]

1. d4 {[%clk 0:03:00.9]} 1... d5 {[%clk 0:01:29.2]} 2. c4 {[%clk 0:03:00.3]}
2... e6 {[%clk 0:01:27.1]} 3. Nc3 {[%clk 0:03:00.1]} 3... c6 {[%clk 0:01:26.8]}
4. e4 {[%clk 0:02:55.6]} 4... dxe4 {[%clk 0:01:26]} 5. Nxe4 {[%clk 0:02:56.5]}
5... Bb4+ {[%clk 0:01:25.7]} 6. Bd2 {[%clk 0:02:56.5]} 6... Qxd4 {[%clk
0:01:25]} 7. Bxb4 {[%clk 0:02:56]} 7... Qxe4+ {[%clk 0:01:25.3]} 8. Be2 {[%clk
0:02:56.2]} 8... Na6 {[%clk 0:01:22.7]} 9. Ba5 {[%clk 0:02:52.9]} 9... b6 {[%clk
0:01:13.8]} 10. Bc3 {[%clk 0:02:50.9]} 10... Nf6 {[%clk 0:01:09.2]} 11. Qd6
{[%clk 0:02:44.7]} 11... Nc5 {[%clk 0:01:00]} 12. O-O-O {[%clk 0:02:27.5]} 12...
Nb7 {[%clk 0:00:59.7]} 13. Qc7 {[%clk 0:02:23.8]} 13... O-O {[%clk 0:00:56.3]}
14. Bd3 {[%clk 0:02:12.8]} 14... Qg4 {[%clk 0:00:49.7]} 15. Bxf6 {[%clk
0:02:06.1]} 15... gxf6 {[%clk 0:00:26.9]} 16. Qxc6 {[%clk 0:01:58.8]} 16... Nc5
{[%clk 0:00:24.7]} 17. Qf3 {[%clk 0:01:49.6]} 17... Nxd3+ {[%clk 0:00:22.8]} 18.
Qxd3 {[%clk 0:01:43.4]} 18... Bb7 {[%clk 0:00:20.4]} 19. Ne2 {[%clk 0:01:37.7]}
19... Rac8 {[%clk 0:00:20.2]} 20. b3 {[%clk 0:01:24.9]} 20... b5 {[%clk
0:00:20.2]} 21. Qg3 {[%clk 0:01:21.5]} 21... Qxg3 {[%clk 0:00:19.5]} 22. Nxg3
{[%clk 0:01:20.4]} 22... bxc4 {[%clk 0:00:19.6]} 23. Kb2 {[%clk 0:01:14.1]}
23... c3+ {[%clk 0:00:19.5]} 24. Kc2 {[%clk 0:01:13.6]} 24... f5 {[%clk
0:00:19.1]} 25. f3 {[%clk 0:01:12.5]} 25... f4 {[%clk 0:00:18.7]} 26. Nh5 {[%clk
0:01:12]} 26... f6 {[%clk 0:00:17.8]} 27. Nxf4 {[%clk 0:01:10.9]} 27... e5
{[%clk 0:00:18]} 28. Nh5 {[%clk 0:01:02.7]} 28... Kf7 {[%clk 0:00:18]} 29. Rd7+
{[%clk 0:01:02]} 29... Kg6 {[%clk 0:00:18.6]} 30. Rxb7 {[%clk 0:01:00.4]} 30...
Kxh5 {[%clk 0:00:17.7]} 31. Rxh7+ {[%clk 0:00:59.5]} 31... Kg6 {[%clk
0:00:18.6]} 32. Rxa7 {[%clk 0:00:59.3]} 32... Rfd8 {[%clk 0:00:18.8]} 33. Rd1
{[%clk 0:00:54.3]} 33... Rxd1 {[%clk 0:00:19.4]} 34. Kxd1 {[%clk 0:00:54.2]}
34... Rd8+ {[%clk 0:00:20.1]} 35. Kc2 {[%clk 0:00:53.3]} 35... Rd2+ {[%clk
0:00:20.8]} 36. Kxc3 {[%clk 0:00:53.5]} 36... Rxg2 {[%clk 0:00:21.7]} 37. Ra8
{[%clk 0:00:48.6]} 37... Rf2 {[%clk 0:00:21.6]} 38. Rg8+ {[%clk 0:00:47.4]}
38... Kf5 {[%clk 0:00:21.3]} 39. a4 {[%clk 0:00:41.4]} 39... Rxf3+ {[%clk
0:00:21.4]} 40. Kc4 {[%clk 0:00:41.5]} 40... Rh3 {[%clk 0:00:21.1]} 41. Rg2
{[%clk 0:00:39.7]} 41... Rh4+ {[%clk 0:00:20.2]} 42. Kc5 {[%clk 0:00:39.4]}
42... e4 {[%clk 0:00:20.6]} 43. a5 {[%clk 0:00:39.2]} 43... e3 {[%clk
0:00:20.9]} 44. a6 {[%clk 0:00:38.6]} 44... Rh8 {[%clk 0:00:19.7]} 45. b4 {[%clk
0:00:29.5]} 45... Ke4 {[%clk 0:00:19.9]} 46. b5 {[%clk 0:00:26]} 46... f5 {[%clk
0:00:19.6]} 47. b6 {[%clk 0:00:22.7]} 47... f4 {[%clk 0:00:20]} 48. a7 {[%clk
0:00:17.2]} 48... f3 {[%clk 0:00:20.3]} 49. Rb2 {[%clk 0:00:16.1]} 49... e2
{[%clk 0:00:20.3]} 50. Rb4+ {[%clk 0:00:11.9]} 50... Ke3 {[%clk 0:00:19.5]} 51.
Rb3+ {[%clk 0:00:11.2]} 51... Kf2 {[%clk 0:00:19.8]} 52. Rb2 {[%clk 0:00:11]}
52... Kg1 {[%clk 0:00:20]} 53. Rb1+ {[%clk 0:00:10.9]} 53... Kg2 {[%clk
0:00:20.3]} 54. b7 {[%clk 0:00:09.8]} 54... f2 {[%clk 0:00:20.5]} 55. a8=Q
{[%clk 0:00:09.7]} 55... Rh5+ {[%clk 0:00:19.7]} 56. Kd6 {[%clk 0:00:09.1]}
56... f1=Q {[%clk 0:00:19]} 57. b8=Q+ {[%clk 0:00:08.5]} 57... Kf2 {[%clk
0:00:19.1]} 58. Qaa7+ {[%clk 0:00:08.3]} 58... Kg2 {[%clk 0:00:15.5]} 59. Qg8+
{[%clk 0:00:08.4]} 59... Kxh2 {[%clk 0:00:15.3]} 60. Qgg1+ {[%clk 0:00:07.9]}
60... Qxg1 {[%clk 0:00:14.8]} 61. Qxg1+ {[%clk 0:00:07.6]} 61... Kh3 {[%clk
0:00:15.5]} 62. Rb3+ {[%clk 0:00:07.7]} 62... Kh4 {[%clk 0:00:15.7]} 63. Qg3#
{[%clk 0:00:07.8]} 1-0